[Event "Titled Tuesday Blitz January 31 Early 2023"]
[White "Alhadad, Mahmoud"]
[Black "Mosquera, Miguel"]
[WhiteFideId "11501863"]
[BlackFideId "4401131"]
[WhiteElo "1840"]
[BlackElo "2371"]
[Result "1/2-1/2"]
[Round "06"]
[TimeControl "180+2"]
[Date "2023.01.31"]
[WhiteClock "0:00:12"]
[BlackClock "0:00:05"]

1. e4 {[%clk 0:03:00]}  c5 {[%clk 0:03:00]} 2. Nc3 {[%clk 0:03:00]}  d6 {[%clk 0:02:57]} 3. f4 {[%clk 0:02:58]}  Nc6 {[%clk 0:02:57]} 4. Nf3 {[%clk 0:02:58]}  e6 {[%clk 0:02:57]} 5. Bb5 {[%clk 0:02:57]}  Bd7 {[%clk 0:02:57]} 6. Bxc6 {[%clk 0:02:56]}  Bxc6 {[%clk 0:02:57]} 7. d3 {[%clk 0:02:57]}  Be7 {[%clk 0:02:53]} 8. O-O {[%clk 0:02:58]}  d5 {[%clk 0:02:47]} 9. e5 {[%clk 0:02:55]}  Qd7 {[%clk 0:02:43]} 10. Ne2 {[%clk 0:02:56]}  Nh6 {[%clk 0:02:41]} 11. Be3 {[%clk 0:02:55]}  Nf5 {[%clk 0:02:40]} 12. Bf2 {[%clk 0:02:56]}  h5 {[%clk 0:02:38]} 13. Ng3 {[%clk 0:02:56]}  O-O-O {[%clk 0:02:28]} 14. Nxf5 {[%clk 0:02:55]}  exf5 {[%clk 0:02:29]} 15. Re1 {[%clk 0:02:49]}  Rdg8 {[%clk 0:02:23]} 16. e6 {[%clk 0:02:44]}  fxe6 {[%clk 0:02:22]} 17. Qe2 {[%clk 0:02:45]}  d4 {[%clk 0:02:00]} 18. Ne5 {[%clk 0:02:43]}  Qd6 {[%clk 0:01:50]} 19. Nxc6 {[%clk 0:02:43]}  Qxc6 {[%clk 0:01:47]} 20. Qxe6+ {[%clk 0:02:43]}  Qxe6 {[%clk 0:01:47]} 21. Rxe6 {[%clk 0:02:44]}  Kd7 {[%clk 0:01:46]} 22. Rae1 {[%clk 0:02:42]}  Bd6 {[%clk 0:01:44]} 23. b4 {[%clk 0:02:29]}  b6 {[%clk 0:01:40]} 24. g3 {[%clk 0:02:20]}  g5 {[%clk 0:01:39]} 25. fxg5 {[%clk 0:02:10]}  Rxg5 {[%clk 0:01:35]} 26. Rf6 {[%clk 0:02:09]}  Be7 {[%clk 0:01:14]} 27. Rf7 {[%clk 0:02:06]}  Re8 {[%clk 0:01:08]} 28. h4 {[%clk 0:01:59]}  Rg6 {[%clk 0:01:01]} 29. Rxf5 {[%clk 0:01:58]}  Bxh4 {[%clk 0:00:53]} 30. Rxe8 {[%clk 0:01:57]}  Kxe8 {[%clk 0:00:53]} 31. Kh2 {[%clk 0:01:35]}  Be7 {[%clk 0:00:46]} 32. Rxh5 {[%clk 0:01:30]}  Re6 {[%clk 0:00:45]} 33. bxc5 {[%clk 0:01:14]}  bxc5 {[%clk 0:00:46]} 34. Rh8+ {[%clk 0:01:02]}  Kd7 {[%clk 0:00:46]} 35. Ra8 {[%clk 0:01:02]}  Ra6 {[%clk 0:00:45]} 36. g4 {[%clk 0:00:53]}  Rxa2 {[%clk 0:00:45]} 37. Kg3 {[%clk 0:00:49]}  a5 {[%clk 0:00:23]} 38. Kf3 {[%clk 0:00:42]}  a4 {[%clk 0:00:22]} 39. Bg3 {[%clk 0:00:34]}  a3 {[%clk 0:00:18]} 40. Ra7+ {[%clk 0:00:30]}  Ke6 {[%clk 0:00:16]} 41. Ra6+ {[%clk 0:00:27]}  Kd7 {[%clk 0:00:14]} 42. Bf4 {[%clk 0:00:26]}  c4 {[%clk 0:00:14]} 43. dxc4 {[%clk 0:00:23]}  Rxc2 {[%clk 0:00:14]} 44. Ra4 {[%clk 0:00:07]}  a2 {[%clk 0:00:13]} 45. Be5 {[%clk 0:00:07]}  Rc3+ {[%clk 0:00:09]} 46. Ke4 {[%clk 0:00:06]}  Re3+ {[%clk 0:00:06]} 47. Kxd4 {[%clk 0:00:05]}  Re2 {[%clk 0:00:05]} 48. Ra7+ {[%clk 0:00:03]}  Ke8 {[%clk 0:00:05]} 49. Kd5 {[%clk 0:00:03]}  Kf7 {[%clk 0:00:04]} 50. c5 {[%clk 0:00:02]}  Rxe5+ {[%clk 0:00:03]} 51. Kxe5 {[%clk 0:00:03]}  a1=Q+ {[%clk 0:00:02]} 52. Rxa1 {[%clk 0:00:02]}  Bf6+ {[%clk 0:00:03]} 53. Kd5 {[%clk 0:00:03]}  Bxa1 {[%clk 0:00:04]} 54. c6 {[%clk 0:00:03]}  Ke7 {[%clk 0:00:03]} 55. Kc5 {[%clk 0:00:04]}  Kd8 {[%clk 0:00:03]} 56. Kb5 {[%clk 0:00:05]}  Be5 {[%clk 0:00:02]} 57. g5 {[%clk 0:00:06]}  Kc8 {[%clk 0:00:02]} 58. g6 {[%clk 0:00:07]}  Bg7 {[%clk 0:00:03]} 59. Kc5 {[%clk 0:00:08]}  Kb8 {[%clk 0:00:03]} 60. Kd5 {[%clk 0:00:09]}  Kc8 {[%clk 0:00:04]} 61. Kc5 {[%clk 0:00:09]}  Kc7 {[%clk 0:00:04]} 62. Kd5 {[%clk 0:00:10]}  Bf8 {[%clk 0:00:05]} 63. Ke6 {[%clk 0:00:10]}  Kxc6 {[%clk 0:00:05]} 64. Kf7 {[%clk 0:00:11]}  Bh6 {[%clk 0:00:05]} 65. g7 {[%clk 0:00:12]}  Bxg7 {[%clk 0:00:05]} 1/2-1/2


[Site "https://www.chess.com"]

[Event "Titled Tuesday Blitz January 31 Early 2023"]
[White "MunichMouse"]
[Black "Ruiz Aguilar, Pablo Alexander"]
[BlackFideId "4401352"]
[WhiteElo "2204"]
[BlackElo "2161"]
[Result "0-1"]
[Round "06"]
[TimeControl "180+2"]
[Date "2023.01.31"]
[WhiteClock "0:00:01"]
[BlackClock "0:00:13"]

1. d4 {[%clk 0:03:00]}  d5 {[%clk 0:02:58]} 2. c4 {[%clk 0:03:00]}  c6 {[%clk 0:02:58]} 3. Nf3 {[%clk 0:03:01]}  Nf6 {[%clk 0:02:58]} 4. e3 {[%clk 0:03:01]}  Bf5 {[%clk 0:02:58]} 5. Nc3 {[%clk 0:03:01]}  e6 {[%clk 0:02:58]} 6. Qb3 {[%clk 0:03:02]}  Qb6 {[%clk 0:02:57]} 7. c5 {[%clk 0:03:02]}  Qc7 {[%clk 0:02:55]} 8. Ne5 {[%clk 0:03:02]}  Nbd7 {[%clk 0:02:54]} 9. f4 {[%clk 0:03:02]}  Nxe5 {[%clk 0:02:52]} 10. fxe5 {[%clk 0:03:02]}  Ne4 {[%clk 0:02:53]} 11. Be2 {[%clk 0:03:01]}  Be7 {[%clk 0:02:51]} 12. O-O {[%clk 0:03:01]}  O-O {[%clk 0:02:52]} 13. Nxe4 {[%clk 0:02:44]}  Bxe4 {[%clk 0:02:51]} 14. Bd2 {[%clk 0:02:45]}  b6 {[%clk 0:02:50]} 15. cxb6 {[%clk 0:02:40]}  axb6 {[%clk 0:02:50]} 16. Rac1 {[%clk 0:02:40]}  c5 {[%clk 0:02:49]} 17. a3 {[%clk 0:02:39]}  c4 {[%clk 0:02:47]} 18. Qb5 {[%clk 0:02:15]}  Qd8 {[%clk 0:02:38]} 19. Rf4 {[%clk 0:02:09]}  Bg6 {[%clk 0:02:36]} 20. Bb4 {[%clk 0:01:51]}  Bxb4 {[%clk 0:02:35]} 21. Qxb4 {[%clk 0:01:52]}  Qg5 {[%clk 0:02:27]} 22. Rcf1 {[%clk 0:01:41]}  Rfb8 {[%clk 0:02:22]} 23. R1f2 {[%clk 0:01:38]}  b5 {[%clk 0:02:21]} 24. Bd1 {[%clk 0:01:37]}  Qd8 {[%clk 0:02:12]} 25. h4 {[%clk 0:01:28]}  Ra7 {[%clk 0:01:55]} 26. h5 {[%clk 0:01:22]}  Bd3 {[%clk 0:01:55]} 27. R2f3 {[%clk 0:01:12]}  Qe7 {[%clk 0:01:52]} 28. Qe1 {[%clk 0:01:10]}  b4 {[%clk 0:01:46]} 29. axb4 {[%clk 0:00:46]}  Qxb4 {[%clk 0:01:45]} 30. Qg3 {[%clk 0:00:39]}  Be4 {[%clk 0:01:37]} 31. Rg4 {[%clk 0:00:30]}  Bxf3 {[%clk 0:01:09]} 32. Rxg7+ {[%clk 0:00:28]}  Kh8 {[%clk 0:01:10]} 33. Qg5 {[%clk 0:00:21]}  Qf8 {[%clk 0:00:47]} 34. h6 {[%clk 0:00:05]}  f6 {[%clk 0:00:24]} 35. exf6 {[%clk 0:00:06]}  Rf7 {[%clk 0:00:17]} 36. Bxf3 {[%clk 0:00:01]}  Rxb2 {[%clk 0:00:13]} 0-1


[Site "https://www.chess.com"]

[Event "Titled Tuesday Blitz January 31 Early 2023"]
[White "Osmonbekov, Talaibek"]
[Black "Quirke, Jeffrey"]
[WhiteFideId "2017253"]
[BlackFideId "2013029"]
[WhiteElo "2137"]
[BlackElo "2007"]
[Result "1-0"]
[Round "06"]
[TimeControl "180+2"]
[Date "2023.01.31"]
[WhiteClock "0:00:38"]
[BlackClock "0:00:37"]

1. d4 {[%clk 0:02:54]}  Nf6 {[%clk 0:02:59]} 2. Bf4 {[%clk 0:02:47]}  d5 {[%clk 0:02:57]} 3. Nc3 {[%clk 0:02:43]}  Bf5 {[%clk 0:02:54]} 4. e3 {[%clk 0:02:02]}  e6 {[%clk 0:02:52]} 5. f3 {[%clk 0:01:55]}  a6 {[%clk 0:02:51]} 6. g4 {[%clk 0:01:55]}  Bg6 {[%clk 0:02:51]} 7. h4 {[%clk 0:01:56]}  h6 {[%clk 0:02:51]} 8. h5 {[%clk 0:01:32]}  Bh7 {[%clk 0:02:51]} 9. Bd3 {[%clk 0:01:33]}  Bxd3 {[%clk 0:02:49]} 10. Qxd3 {[%clk 0:01:34]}  c5 {[%clk 0:02:48]} 11. O-O-O {[%clk 0:01:12]}  c4 {[%clk 0:02:47]} 12. Qe2 {[%clk 0:01:09]}  Nc6 {[%clk 0:02:47]} 13. e4 {[%clk 0:01:09]}  b5 {[%clk 0:02:22]} 14. exd5 {[%clk 0:01:08]}  Nxd5 {[%clk 0:02:21]} 15. Nxd5 {[%clk 0:01:05]}  Qxd5 {[%clk 0:02:20]} 16. Qe3 {[%clk 0:01:04]}  Be7 {[%clk 0:02:08]} 17. Ne2 {[%clk 0:01:02]}  b4 {[%clk 0:02:08]} 18. Be5 {[%clk 0:01:00]}  O-O {[%clk 0:01:55]} 19. Nf4 {[%clk 0:00:57]}  Qa5 {[%clk 0:01:47]} 20. Kb1 {[%clk 0:00:56]}  Bg5 {[%clk 0:01:34]} 21. Qe4 {[%clk 0:00:50]}  Nxe5 {[%clk 0:01:33]} 22. dxe5 {[%clk 0:00:43]}  Bxf4 {[%clk 0:01:25]} 23. Qxf4 {[%clk 0:00:43]}  c3 {[%clk 0:01:24]} 24. g5 {[%clk 0:00:39]}  hxg5 {[%clk 0:00:40]} 25. Qxg5 {[%clk 0:00:40]}  Kh8 {[%clk 0:00:37]} 26. h6 {[%clk 0:00:38]} 1-0


[Site "https://www.chess.com"]

[Event "Titled Tuesday Blitz January 31 Early 2023"]
[White "Ricaurte Lopez, Juan Carlos"]
[Black "Dilmukhametov, Artur"]
[WhiteFideId "3600327"]
[BlackFideId "24179922"]
[WhiteElo "2226"]
[BlackElo "2276"]
[Result "1-0"]
[Round "06"]
[TimeControl "180+2"]
[Date "2023.01.31"]
[WhiteClock "0:00:08"]
[BlackClock "0:01:08"]

1. e4 {[%clk 0:02:51]}  e6 {[%clk 0:02:59]} 2. d4 {[%clk 0:02:52]}  d5 {[%clk 0:02:58]} 3. exd5 {[%clk 0:02:52]}  exd5 {[%clk 0:02:58]} 4. Nf3 {[%clk 0:02:52]}  Bd6 {[%clk 0:02:57]} 5. c4 {[%clk 0:02:51]}  dxc4 {[%clk 0:02:56]} 6. Bxc4 {[%clk 0:02:49]}  Ne7 {[%clk 0:02:57]} 7. O-O {[%clk 0:02:48]}  Bg4 {[%clk 0:02:54]} 8. h3 {[%clk 0:02:46]}  Bh5 {[%clk 0:02:53]} 9. Nc3 {[%clk 0:02:43]}  O-O {[%clk 0:02:51]} 10. g4 {[%clk 0:02:36]}  Bg6 {[%clk 0:02:50]} 11. Ne5 {[%clk 0:02:36]}  Bxe5 {[%clk 0:02:49]} 12. dxe5 {[%clk 0:02:31]}  Nbc6 {[%clk 0:02:49]} 13. f4 {[%clk 0:02:21]}  Qd4+ {[%clk 0:02:27]} 14. Qxd4 {[%clk 0:02:14]}  Nxd4 {[%clk 0:02:28]} 15. f5 {[%clk 0:02:10]}  Nexf5 {[%clk 0:02:26]} 16. gxf5 {[%clk 0:02:06]}  Bxf5 {[%clk 0:02:25]} 17. Rf4 {[%clk 0:01:48]}  c5 {[%clk 0:02:20]} 18. Nd5 {[%clk 0:01:37]}  Bxh3 {[%clk 0:02:16]} 19. Bd2 {[%clk 0:01:31]}  b5 {[%clk 0:02:15]} 20. Bf1 {[%clk 0:01:17]}  Bxf1 {[%clk 0:02:11]} 21. Raxf1 {[%clk 0:01:08]}  Ne2+ {[%clk 0:02:10]} 22. Kg2 {[%clk 0:00:59]}  Nxf4+ {[%clk 0:02:11]} 23. Bxf4 {[%clk 0:00:57]}  Rfd8 {[%clk 0:01:58]} 24. Nc3 {[%clk 0:00:32]}  a6 {[%clk 0:01:55]} 25. Ne4 {[%clk 0:00:25]}  Rd4 {[%clk 0:01:46]} 26. Nxc5 {[%clk 0:00:20]}  g6 {[%clk 0:01:36]} 27. Kf3 {[%clk 0:00:17]}  Kf8 {[%clk 0:01:33]} 28. e6 {[%clk 0:00:11]}  Ke7 {[%clk 0:01:24]} 29. Bg5+ {[%clk 0:00:09]}  Ke8 {[%clk 0:01:15]} 30. exf7+ {[%clk 0:00:08]}  Kxf7 {[%clk 0:01:13]} 31. Ke3+ {[%clk 0:00:08]}  Kg7 {[%clk 0:01:11]} 32. Kxd4 {[%clk 0:00:09]}  Rb8 {[%clk 0:01:08]} 33. Kd5 {[%clk 0:00:08]} 1-0


[Site "https://www.chess.com"]

[Event "Titled Tuesday Blitz January 31 Early 2023"]
[White "Corredor Castellanos, Camilo"]
[Black "Levine, David"]
[WhiteFideId "4425871"]
[BlackFideId "2011611"]
[WhiteElo "1957"]
[BlackElo "2040"]
[Result "1-0"]
[Round "06"]
[TimeControl "180+2"]
[Date "2023.01.31"]
[WhiteClock "0:01:39"]
[BlackClock "0:00:20"]

1. d4 {[%clk 0:03:00]}  d5 {[%clk 0:02:59]} 2. c4 {[%clk 0:03:00]}  dxc4 {[%clk 0:02:59]} 3. e4 {[%clk 0:02:59]}  Nf6 {[%clk 0:02:58]} 4. Nc3 {[%clk 0:02:57]}  e5 {[%clk 0:02:57]} 5. dxe5 {[%clk 0:02:52]}  Qxd1+ {[%clk 0:02:56]} 6. Kxd1 {[%clk 0:02:53]}  Ng4 {[%clk 0:02:55]} 7. Ke1 {[%clk 0:02:34]}  Nxe5 {[%clk 0:02:54]} 8. f4 {[%clk 0:02:34]}  Nd3+ {[%clk 0:02:47]} 9. Bxd3 {[%clk 0:02:34]}  cxd3 {[%clk 0:02:47]} 10. Be3 {[%clk 0:02:32]}  Nc6 {[%clk 0:02:41]} 11. Rd1 {[%clk 0:02:24]}  Nb4 {[%clk 0:02:33]} 12. a3 {[%clk 0:02:24]}  Nc2+ {[%clk 0:02:33]} 13. Kf2 {[%clk 0:02:22]}  Nxe3 {[%clk 0:02:22]} 14. Kxe3 {[%clk 0:02:21]}  Bg4 {[%clk 0:02:23]} 15. Nf3 {[%clk 0:02:15]}  Bc5+ {[%clk 0:02:21]} 16. Kxd3 {[%clk 0:02:15]}  O-O-O+ {[%clk 0:02:19]} 17. Kc2 {[%clk 0:02:15]}  c6 {[%clk 0:02:05]} 18. h3 {[%clk 0:02:13]}  Bxf3 {[%clk 0:01:55]} 19. gxf3 {[%clk 0:02:14]}  Be3 {[%clk 0:01:54]} 20. Ne2 {[%clk 0:02:10]}  Rxd1 {[%clk 0:01:53]} 21. Rxd1 {[%clk 0:02:10]}  Rd8 {[%clk 0:01:54]} 22. Rxd8+ {[%clk 0:02:10]}  Kxd8 {[%clk 0:01:54]} 23. Kd3 {[%clk 0:02:10]}  Bb6 {[%clk 0:01:43]} 24. e5 {[%clk 0:02:08]}  g6 {[%clk 0:01:39]} 25. h4 {[%clk 0:02:07]}  h5 {[%clk 0:01:38]} 26. Nd4 {[%clk 0:01:56]}  Bxd4 {[%clk 0:01:24]} 27. Kxd4 {[%clk 0:01:56]}  b6 {[%clk 0:01:18]} 28. Ke4 {[%clk 0:01:54]}  Ke7 {[%clk 0:01:17]} 29. f5 {[%clk 0:01:54]}  Kd7 {[%clk 0:01:08]} 30. fxg6 {[%clk 0:01:43]}  fxg6 {[%clk 0:01:08]} 31. f4 {[%clk 0:01:44]}  Ke6 {[%clk 0:01:07]} 32. Kd4 {[%clk 0:01:43]}  Kf5 {[%clk 0:01:04]} 33. Kc4 {[%clk 0:01:43]}  Ke6 {[%clk 0:00:58]} 34. b3 {[%clk 0:01:41]}  Kf5 {[%clk 0:00:57]} 35. b4 {[%clk 0:01:40]}  a6 {[%clk 0:00:51]} 36. a4 {[%clk 0:01:40]}  Ke6 {[%clk 0:00:45]} 37. a5 {[%clk 0:01:40]}  bxa5 {[%clk 0:00:24]} 38. bxa5 {[%clk 0:01:39]}  Kf5 {[%clk 0:00:21]} 39. Kc5 {[%clk 0:01:39]}  g5 {[%clk 0:00:21]} 40. fxg5 {[%clk 0:01:38]}  Kxe5 {[%clk 0:00:20]} 41. Kxc6 {[%clk 0:01:39]} 1-0


[Site "https://www.chess.com"]

[Event "Titled Tuesday Blitz January 31 Early 2023"]
[White "Nakamura, Hikaru"]
[Black "Caruana, Fabiano"]
[WhiteFideId "2016192"]
[BlackFideId "2020009"]
[WhiteElo "2775"]
[BlackElo "2764"]
[Result "0-1"]
[Round "07"]
[TimeControl "180+2"]
[Date "2023.01.31"]
[WhiteClock "0:00:03"]
[BlackClock "0:00:13"]

1. e4 {[%clk 0:03:00]}  e5 {[%clk 0:02:59]} 2. Nf3 {[%clk 0:03:00]}  Nc6 {[%clk 0:02:59]} 3. Bb5 {[%clk 0:03:00]}  a6 {[%clk 0:02:59]} 4. Ba4 {[%clk 0:03:01]}  Nf6 {[%clk 0:03:00]} 5. O-O {[%clk 0:03:01]}  b5 {[%clk 0:03:01]} 6. Bb3 {[%clk 0:03:01]}  Bc5 {[%clk 0:03:01]} 7. a4 {[%clk 0:03:01]}  Rb8 {[%clk 0:03:01]} 8. Nxe5 {[%clk 0:03:00]}  Nxe5 {[%clk 0:03:01]} 9. d4 {[%clk 0:03:01]}  Bxd4 {[%clk 0:03:02]} 10. Qxd4 {[%clk 0:03:02]}  d6 {[%clk 0:03:02]} 11. axb5 {[%clk 0:03:02]}  axb5 {[%clk 0:03:02]} 12. f4 {[%clk 0:03:02]}  Nc6 {[%clk 0:03:02]} 13. Qc3 {[%clk 0:03:00]}  Ne7 {[%clk 0:03:02]} 14. e5 {[%clk 0:03:00]}  Ne4 {[%clk 0:03:01]} 15. Qf3 {[%clk 0:03:00]}  Nc5 {[%clk 0:02:57]} 16. Ba2 {[%clk 0:02:58]}  O-O {[%clk 0:02:56]} 17. b4 {[%clk 0:02:57]}  Na4 {[%clk 0:02:51]} 18. Bb3 {[%clk 0:02:53]}  dxe5 {[%clk 0:02:43]} 19. Rd1 {[%clk 0:02:42]}  Qe8 {[%clk 0:02:42]} 20. Nc3 {[%clk 0:02:25]}  Bb7 {[%clk 0:02:38]} 21. Qh3 {[%clk 0:02:25]}  Bc8 {[%clk 0:01:57]} 22. Qf3 {[%clk 0:02:17]}  Bb7 {[%clk 0:01:48]} 23. Qh3 {[%clk 0:02:10]}  Ra8 {[%clk 0:01:49]} 24. fxe5 {[%clk 0:01:41]}  Qc6 {[%clk 0:01:17]} 25. Bd2 {[%clk 0:01:10]}  Nb2 {[%clk 0:00:55]} 26. Rxa8 {[%clk 0:01:01]}  Rxa8 {[%clk 0:00:54]} 27. Rf1 {[%clk 0:00:59]}  Nc4 {[%clk 0:00:54]} 28. Bxc4 {[%clk 0:00:46]}  Qxc4 {[%clk 0:00:43]} 29. Qd7 {[%clk 0:00:45]}  Ng6 {[%clk 0:00:44]} 30. e6 {[%clk 0:00:43]}  fxe6 {[%clk 0:00:35]} 31. Qd3 {[%clk 0:00:07]}  Qxd3 {[%clk 0:00:27]} 32. cxd3 {[%clk 0:00:08]}  Ne5 {[%clk 0:00:27]} 33. d4 {[%clk 0:00:04]}  Nc4 {[%clk 0:00:26]} 34. Bf4 {[%clk 0:00:04]}  Bc6 {[%clk 0:00:23]} 35. Bxc7 {[%clk 0:00:03]}  Ra3 {[%clk 0:00:24]} 36. Rc1 {[%clk 0:00:03]}  Rb3 {[%clk 0:00:23]} 37. Ne2 {[%clk 0:00:02]}  Rxb4 {[%clk 0:00:21]} 38. Nf4 {[%clk 0:00:03]}  Rb2 {[%clk 0:00:16]} 39. h4 {[%clk 0:00:03]}  Bd5 {[%clk 0:00:13]} 0-1


[Site "https://www.chess.com"]

[Event "Titled Tuesday Blitz January 31 Early 2023"]
[White "Mosadeghpour, Masoud"]
[Black "Andreikin, Dmitry"]
[WhiteFideId "12519278"]
[BlackFideId "4158814"]
[WhiteElo "2472"]
[BlackElo "2729"]
[Result "0-1"]
[Round "07"]
[TimeControl "180+2"]
[Date "2023.01.31"]
[WhiteClock "0:00:01"]
[BlackClock "0:00:36"]

1. e4 {[%clk 0:03:00]}  c5 {[%clk 0:02:59]} 2. d4 {[%clk 0:03:00]}  cxd4 {[%clk 0:02:59]} 3. c3 {[%clk 0:03:01]}  Nf6 {[%clk 0:02:58]} 4. e5 {[%clk 0:03:01]}  Nd5 {[%clk 0:02:59]} 5. Nf3 {[%clk 0:03:02]}  Nc6 {[%clk 0:02:56]} 6. Bc4 {[%clk 0:03:02]}  e6 {[%clk 0:02:54]} 7. cxd4 {[%clk 0:03:01]}  d6 {[%clk 0:02:55]} 8. O-O {[%clk 0:03:01]}  dxe5 {[%clk 0:02:53]} 9. dxe5 {[%clk 0:02:59]}  Nb6 {[%clk 0:02:53]} 10. Qxd8+ {[%clk 0:02:55]}  Nxd8 {[%clk 0:02:54]} 11. Bb3 {[%clk 0:02:53]}  Nc6 {[%clk 0:02:53]} 12. Nc3 {[%clk 0:02:47]}  Be7 {[%clk 0:02:53]} 13. Be3 {[%clk 0:02:46]}  O-O {[%clk 0:02:52]} 14. Rac1 {[%clk 0:02:40]}  Na5 {[%clk 0:02:52]} 15. Rfd1 {[%clk 0:02:31]}  Nbc4 {[%clk 0:02:35]} 16. Bxc4 {[%clk 0:02:17]}  Nxc4 {[%clk 0:02:36]} 17. Bg5 {[%clk 0:02:17]}  Bxg5 {[%clk 0:02:33]} 18. Nxg5 {[%clk 0:02:18]}  Nxe5 {[%clk 0:02:32]} 19. f4 {[%clk 0:02:16]}  Ng6 {[%clk 0:02:29]} 20. g3 {[%clk 0:02:15]}  e5 {[%clk 0:02:29]} 21. fxe5 {[%clk 0:02:12]}  Nxe5 {[%clk 0:02:29]} 22. Nd5 {[%clk 0:02:12]}  Bg4 {[%clk 0:02:23]} 23. Rd4 {[%clk 0:02:11]}  f6 {[%clk 0:02:12]} 24. Re1 {[%clk 0:01:48]}  Rfd8 {[%clk 0:01:41]} 25. Kg2 {[%clk 0:00:29]}  Bd7 {[%clk 0:01:13]} 26. Ne4 {[%clk 0:00:17]}  Bc6 {[%clk 0:01:12]} 27. Nec3 {[%clk 0:00:17]}  Rd7 {[%clk 0:01:10]} 28. Red1 {[%clk 0:00:17]}  Rad8 {[%clk 0:01:09]} 29. Kf2 {[%clk 0:00:18]}  Kf7 {[%clk 0:01:09]} 30. b3 {[%clk 0:00:16]}  g5 {[%clk 0:01:03]} 31. h3 {[%clk 0:00:11]}  h5 {[%clk 0:01:03]} 32. a3 {[%clk 0:00:10]}  a5 {[%clk 0:01:01]} 33. a4 {[%clk 0:00:10]}  Rd6 {[%clk 0:00:49]} 34. R4d2 {[%clk 0:00:07]}  R8d7 {[%clk 0:00:49]} 35. Rd4 {[%clk 0:00:07]}  g4 {[%clk 0:00:42]} 36. hxg4 {[%clk 0:00:06]}  Nxg4+ {[%clk 0:00:43]} 37. Kg1 {[%clk 0:00:05]}  Ne3 {[%clk 0:00:41]} 38. Nxe3 {[%clk 0:00:03]}  Rxd4 {[%clk 0:00:41]} 39. Re1 {[%clk 0:00:03]}  Rd3 {[%clk 0:00:41]} 40. Ncd1 {[%clk 0:00:02]}  Re7 {[%clk 0:00:41]} 41. Kf2 {[%clk 0:00:02]}  Rxb3 {[%clk 0:00:41]} 42. Rf1 {[%clk 0:00:01]}  Re5 {[%clk 0:00:38]} 43. Re1 {[%clk 0:00:02]}  Bxa4 {[%clk 0:00:37]} 44. Kg1 {[%clk 0:00:02]}  Bc6 {[%clk 0:00:37]} 45. Kf2 {[%clk 0:00:02]}  a4 {[%clk 0:00:37]} 46. Re2 {[%clk 0:00:02]}  a3 {[%clk 0:00:37]} 47. Rd2 {[%clk 0:00:03]}  Rexe3 {[%clk 0:00:37]} 48. Nxe3 {[%clk 0:00:03]}  Rb2 {[%clk 0:00:37]} 49. Rc2 {[%clk 0:00:01]}  Be4 {[%clk 0:00:36]} 0-1


[Site "https://www.chess.com"]

[Event "Titled Tuesday Blitz January 31 Early 2023"]
[White "Babazada, Khazar"]
[Black "Sarana, Alexey"]
[WhiteFideId "13413554"]
[BlackFideId "24133795"]
[WhiteElo "2474"]
[BlackElo "2685"]
[Result "1-0"]
[Round "07"]
[TimeControl "180+2"]
[Date "2023.01.31"]
[WhiteClock "0:01:09"]
[BlackClock "0:00:02"]

1. e4 {[%clk 0:03:00]}  e5 {[%clk 0:02:57]} 2. Nf3 {[%clk 0:02:58]}  Nc6 {[%clk 0:02:57]} 3. d4 {[%clk 0:02:57]}  exd4 {[%clk 0:02:57]} 4. Nxd4 {[%clk 0:02:57]}  Nf6 {[%clk 0:02:57]} 5. Nc3 {[%clk 0:02:56]}  Bb4 {[%clk 0:02:56]} 6. Nxc6 {[%clk 0:02:57]}  bxc6 {[%clk 0:02:57]} 7. Bd3 {[%clk 0:02:57]}  O-O {[%clk 0:02:57]} 8. O-O {[%clk 0:02:57]}  d5 {[%clk 0:02:57]} 9. exd5 {[%clk 0:02:54]}  cxd5 {[%clk 0:02:58]} 10. Bg5 {[%clk 0:02:52]}  Be6 {[%clk 0:02:48]} 11. Qf3 {[%clk 0:02:52]}  h6 {[%clk 0:02:47]} 12. Bh4 {[%clk 0:02:51]}  c5 {[%clk 0:02:41]} 13. Bf5 {[%clk 0:02:46]}  Bxc3 {[%clk 0:02:28]} 14. bxc3 {[%clk 0:02:46]}  Bxf5 {[%clk 0:02:26]} 15. Qxf5 {[%clk 0:02:46]}  Qd7 {[%clk 0:02:26]} 16. Qxd7 {[%clk 0:02:42]}  Nxd7 {[%clk 0:02:27]} 17. Rfd1 {[%clk 0:02:42]}  Nb6 {[%clk 0:02:23]} 18. a4 {[%clk 0:02:42]}  g5 {[%clk 0:02:16]} 19. Bg3 {[%clk 0:02:42]}  Rfd8 {[%clk 0:02:17]} 20. a5 {[%clk 0:02:27]}  Nc4 {[%clk 0:02:16]} 21. a6 {[%clk 0:02:27]}  Rd7 {[%clk 0:02:14]} 22. Rd3 {[%clk 0:02:24]}  Re8 {[%clk 0:02:12]} 23. h4 {[%clk 0:02:23]}  Re6 {[%clk 0:02:11]} 24. hxg5 {[%clk 0:02:23]}  hxg5 {[%clk 0:02:10]} 25. f3 {[%clk 0:02:09]}  Nb2 {[%clk 0:01:53]} 26. Rd2 {[%clk 0:02:09]}  Nc4 {[%clk 0:01:54]} 27. Rd3 {[%clk 0:02:09]}  Nb2 {[%clk 0:01:31]} 28. Rd2 {[%clk 0:02:09]}  Re3 {[%clk 0:01:31]} 29. Rb1 {[%clk 0:01:55]}  Nc4 {[%clk 0:01:31]} 30. Rd3 {[%clk 0:01:55]}  Ree7 {[%clk 0:00:57]} 31. Rb5 {[%clk 0:01:52]}  Nb6 {[%clk 0:00:27]} 32. Rxc5 {[%clk 0:01:50]}  Re2 {[%clk 0:00:27]} 33. Rc7 {[%clk 0:01:28]}  Rxc7 {[%clk 0:00:27]} 34. Bxc7 {[%clk 0:01:29]}  Rxc2 {[%clk 0:00:27]} 35. Bxb6 {[%clk 0:01:28]}  axb6 {[%clk 0:00:28]} 36. Rxd5 {[%clk 0:01:29]}  Ra2 {[%clk 0:00:28]} 37. Rd8+ {[%clk 0:01:12]}  Kg7 {[%clk 0:00:28]} 38. Ra8 {[%clk 0:01:13]}  f5 {[%clk 0:00:28]} 39. Kh2 {[%clk 0:01:13]}  b5 {[%clk 0:00:27]} 40. Kg3 {[%clk 0:01:13]}  Ra4 {[%clk 0:00:26]} 41. Kf2 {[%clk 0:01:11]}  Ra2+ {[%clk 0:00:24]} 42. Kg3 {[%clk 0:01:11]}  Ra4 {[%clk 0:00:18]} 43. a7 {[%clk 0:01:11]}  Ra3 {[%clk 0:00:11]} 44. Kf2 {[%clk 0:01:09]}  Kh7 {[%clk 0:00:04]} 45. Ke2 {[%clk 0:01:09]}  Kg7 {[%clk 0:00:05]} 46. Kd2 {[%clk 0:01:09]}  Kh7 {[%clk 0:00:05]} 47. Kc2 {[%clk 0:01:09]}  Kg7 {[%clk 0:00:02]} 48. Kb2 {[%clk 0:01:09]}  Ra6 {[%clk 0:00:01]} 49. Kb3 {[%clk 0:01:09]}  Ra4 {[%clk 0:00:02]} 50. c4 {[%clk 0:01:09]} 1-0


[Site "https://www.chess.com"]